{"text_format":"1","workbook":"xlsx","n_sheets":8,"sheets":["Общая информация","Ед. поставщик п.4 ч.1","Ед. поставщик п.5 ч.1","Ед.поставщик за искл. п.4,5 ч.1","Состоявшиеся аукционы","Несостоявшиеся аукционы","Иные конкурентные закупки","Настройки"],"not_rendered":{"charts":0,"images":0,"macros":1,"external_links":0,"defined_names":1,"comments":0,"pivot_tables":0},"unopened":[],"bounds":{"document_bytes":16777216,"sheet_cells":100000,"rows_first":2000,"rows_last":500,"rows_between":2000,"halvings":0,"cell_chars":16384,"cell_head_chars":4096},"cells_cut":0,"cells_raw":0,"read":"whole","date_system":"1900"}

{"sheet":"Общая информация","index":0,"n_rows":19,"n_cols":13,"rows_kept":19,"cut":false,"hidden":false,"merged":[[0,0,0,3],[0,4,0,13],[18,0,19,2],[18,3,19,6],[13,0,13,2],[13,3,13,5],[13,6,13,8],[11,12,11,13],[11,9,11,11],[10,0,10,2],[10,3,10,5],[10,6,10,8],[11,6,11,8],[11,0,11,2],[11,3,11,5],[12,12,12,13],[12,9,12,11],[14,0,14,2],[14,3,14,5],[14,6,14,8],[14,12,14,13],[14,9,14,11],[12,0,12,2],[12,3,12,5],[12,6,12,8],[13,9,13,11],[13,12,13,13],[9,3,9,5],[9,6,9,8],[9,12,9,13],[9,9,9,11],[8,0,8,2],[8,3,8,5],[8,6,8,8],[8,12,8,13],[8,9,8,11],[4,7,4,9],[4,12,4,13],[10,12,10,13],[10,9,10,11],[3,0,3,1],[3,4,3,6],[3,7,3,9],[3,12,3,13],[4,0,4,1],[7,0,7,2],[7,3,7,5],[7,6,7,8],[7,12,7,13],[7,9,7,11],[4,4,4,6],[9,0,9,2]]}
["Наименование организации:",null,null,null,"МБОУ СОШ №6"]
[]
[]
["СГОЗ  (общий)",null,7803607.5999999996,null,"п.4 (10% от СГОЗ или 2 000 000)",null,null,2000000,null,null,null,"п.5 (50% СГОЗ)",5000000]
["СГОЗ (остаток)",null,{"$f":"C4-G15+J15","v":2647493.39},null,"п.4 (остаток)",null,null,{"$f":"H4-G12","v":778568.4299999997},null,null,null,"п.5 (остаток)",{"$f":"M4-G13","v":1712758.1400000001}]
[]
[]
["Способ определения поставщика (подрядчика, исполнителя)",null,null,"Начальная (максимальная) цена контракта",null,null,"Фактическая цена контракта",null,null,"Расторжение контракта по соглашению сторон",null,null,"Экономия "]
["Состоявшиеся аукционы",null,null,{"$f":"'Состоявшиеся аукционы'!G2","v":0},null,null,{"$f":"'Состоявшиеся аукционы'!Q2","v":0},null,null,{"$f":"'Состоявшиеся аукционы'!AB2","v":0},null,null,{"$f":"D9-G9","v":0}]
["Несостоявшиеся аукционы",null,null,{"$f":"'Несостоявшиеся аукционы'!G2","v":0},null,null,{"$f":"'Несостоявшиеся аукционы'!Q2","v":0},null,null,{"$f":"'Несостоявшиеся аукционы'!AB2","v":0},null,null,0]
["Иные конкурентные закупки",null,null,{"$f":"'Иные конкурентные закупки'!G2","v":0},null,null,{"$f":"'Иные конкурентные закупки'!Q2","v":0},null,null,{"$f":"'Иные конкурентные закупки'!AB2","v":0},null,null,0]
["Ед. поставщик п.4 ч.1 ",null,null,{"$f":"'Ед. поставщик п.4 ч.1'!H2","v":1221431.5700000003},null,null,{"$f":"D12","v":1221431.5700000003},null,null,{"$f":"'Ед. поставщик п.4 ч.1'!V2","v":0},null,null,0]
["Ед. поставщик п. 5 ч. 1",null,null,{"$f":"'Ед. поставщик п.5 ч.1'!H2","v":3287241.86},null,null,{"$f":"D13","v":3287241.86},null,null,{"$f":"'Ед. поставщик п.5 ч.1'!V2","v":55559.22},null,null,0]
["Ед.поставщик за искл. п.4,5 ч.1",null,null,{"$f":"'Ед.поставщик за искл. п.4,5 ч.1'!G2","v":703000},null,null,{"$f":"D14","v":703000},null,null,{"$f":"'Ед.поставщик за искл. п.4,5 ч.1'!T2","v":0},null,null,0]
["Всего",null,null,{"$f":"SUM(D9:D14)","v":5211673.43},null,null,{"$f":"SUM(G9:G14)","v":5211673.43},null,null,{"$f":"SUM(J9:J14)","v":55559.22},null,null,0]
[]
[]
[]
["Всего средств потрачено по заключенным контрактам",null,null,{"$f":"'Ед. поставщик п.4 ч.1'!P2+'Ед. поставщик п.5 ч.1'!P2+'Ед.поставщик за искл. п.4,5 ч.1'!N2+'Состоявшиеся аукционы'!V2+'Несостоявшиеся аукционы'!V2+'Иные конкурентные закупки'!V2","v":3378297.39}]

{"sheet":"Ед. поставщик п.4 ч.1","index":1,"n_rows":94,"n_cols":24,"rows_kept":94,"cut":false,"hidden":false,"merged":[[14,21,20,21],[14,2,20,2],[14,22,20,22],[14,3,20,3],[14,4,20,4],[14,5,20,5],[14,6,20,6],[14,7,20,7],[14,8,20,8],[14,9,20,9],[14,10,20,10],[14,11,20,11],[14,12,20,12],[46,0,53,0],[46,14,53,14],[46,20,53,20],[46,1,53,1],[46,21,53,21],[46,2,53,2],[46,22,53,22],[46,3,53,3],[46,4,53,4],[46,5,53,5],[46,6,53,6],[46,7,53,7],[46,8,53,8],[46,9,53,9],[46,10,53,10],[46,11,53,11],[46,12,53,12],[38,1,45,1],[38,21,45,21],[38,2,45,2],[38,22,45,22],[38,3,45,3],[38,4,45,4],[38,5,45,5],[38,6,45,6],[38,7,45,7],[38,8,45,8],[38,9,45,9],[38,10,45,10],[38,11,45,11],[38,12,45,12],[23,22,37,22],[23,3,37,3],[23,4,37,4],[23,5,37,5],[23,6,37,6],[23,7,37,7],[23,8,37,8],[23,9,37,9],[23,10,37,10],[23,11,37,11],[23,12,37,12],[61,14,64,14],[61,20,64,20],[61,21,64,21],[61,22,64,22],[61,3,64,3],[8,22,9,22],[8,5,9,5],[8,6,9,6],[8,7,9,7],[8,0,9,0],[8,14,9,14],[8,20,9,20],[8,1,9,1],[10,21,13,21],[10,2,13,2],[10,3,13,3],[10,4,13,4],[10,5,13,5],[10,6,13,6],[10,7,13,7],[10,8,13,8],[10,9,13,9],[10,10,13,10],[10,22,13,22],[10,11,13,11],[10,12,13,12],[8,21,9,21],[10,0,13,0],[10,14,13,14],[2,0,2,4],[1,18,1,20],[1,13,1,14],[3,9,3,10],[3,12,3,13],[3,14,3,15],[1,10,1,12],[8,8,9,8],[8,9,9,9],[8,10,9,10],[8,11,9,11],[8,12,9,12],[8,2,9,2],[8,3,9,3],[8,4,9,4],[23,0,37,0],[23,14,37,14],[23,20,37,20],[23,1,37,1],[23,2,37,2],[14,0,20,0],[14,14,20,14],[14,20,20,20],[14,1,20,1],[23,21,37,21],[10,20,13,20],[10,1,13,1],[61,1,64,1],[61,2,64,2],[69,22,70,22],[69,3,70,3],[69,4,70,4],[69,5,70,5],[69,6,70,6],[69,7,70,7],[69,8,70,8],[69,9,70,9],[69,10,70,10],[69,11,70,11],[69,12,70,12],[69,0,70,0],[69,14,70,14],[69,20,70,20],[69,1,70,1],[69,21,70,21],[69,2,70,2],[61,0,64,0],[61,4,64,4],[61,5,64,5],[61,6,64,6],[61,7,64,7],[61,8,64,8],[61,9,64,9],[61,10,64,10],[61,11,64,11],[61,12,64,12],[38,0,45,0],[38,14,45,14],[38,20,45,20]]}
[]
[null,null,null,null,null,null,"Сумма заключенных контрактов",{"$f":"SUM(H9:H10001)","v":1221431.5700000003},null,null,null,null,null,"Сумма средств выплаченных по контрактам",null,{"$f":"SUM(P9:P10001)","v":687202.24},null,null,"Общая сумма расторжений по контрактам/договорам",null,null,{"$f":"SUM(V9:V10001)","v":0}]
[]
[]
[]
["№ п/п","Наименование муниципальной программы, национального или регионального проекта","Контракт заключен в электронном виде посредством                             АИС \"Портал поставщиков\"   (Да/Нет)","Код бюджетной классификации","№ договора/контракта","Дата заключения договора/контракта","Предмет договора/контракта","Цена договора/контракта","Остаток по контракту","ИНН поставщика (подрядчика, исполнителя) ","Поставщик (подрядчик, исполнитель)","СМП и СОНО                       (да/нет)","Сроки поставки товара (оказания услуги, выполнения работы), согласно договора/контракта; Предоставление документов на оплату Заказчику","Фактическая дата поставки товара (оказания услуги, выполнения работы)","Сроки оплаты согласно договора/контракта","Сумма согласно документа об исполнении контракта заказчиком","Фактическая дата оплаты","Изменение контракта (№, дата)","Изменение контракта (увеличение цены контракта в рублях)","Изменение контракта (уменьшение цены контракта в рублях)","Расторжение контракта (№, дата)","Сумма расторжения в рублях","Примечание"]
["1","2","3","4","5","6","7","8","9","10","11","12","13","14","15","16","17","18","19","20","21","22","23"]
[1,"Муниципальная программа \"Развитие образования\"",null,"902 0113 1310110490 244","№ 1","09.01.2020","Поставка бумаги для офисной техники",20000,{"$f":"H8-P8","v":0},"2353019514","ИП Котляров К.И.",null,"В течение 15 рабочих дней, со дня подписания сторонами контракта","2020-01-10","Не позднее 30 календарных дней с момента подписания акта приема-сдачи и документа на оплату",20000,"2020-01-10",null,null,null,null,null,"Пример"]
[1,"Муниципальная программа \"Развитие образования\"","нет","925 0000 0000000000 244","№ 6-21","2021-01-21","Дератизационные работы",21993.040000000001,{"$f":"IF(X9 = 1, H9 + SUM(S9:S10) - SUM(T9:T10) - SUM(P9:P10) - V9,0)","v":10996.52},"2353018870","ООО \"Дезинфекция\"","нет","по мере необходимости","2021-03-25","Не позднее 30 календарных дней с момента подписания акта приема-сдачи и документа на оплату",5498.26,"2021-04-15",null,null,null,null,null,null,1]
[null,null,null,null,null,null,null,null,null,null,null,null,null,"2021-06-30",null,5498.26,"2021-07-07",null,null,null,null,null,null,1]
[2,"Муниципальная программа \"Развитие образования\"","нет","925 0000 0000000000 244","№ 10","2021-01-21","Работы по сервисному обслуживанию УУТЭ",17500,{"$f":"IF(X11 = 2, H11 + SUM(S11:S14) - SUM(T11:T14) - SUM(P11:P14) - V11,0)","v":7500},"235301271520","ИП Дудкин","нет","согласно приложения 1","2021-01-31","Не позднее 30 календарных дней с момента подписания акта приема-сдачи и документа на оплату",2500,"2021-03-02",null,null,null,null,null,null,2]
[null,null,null,null,null,null,null,null,null,null,null,null,null,"2021-02-28",null,2500,"2021-03-09",null,null,null,null,null,null,2]
[null,null,null,null,null,null,null,null,null,null,null,null,null,"2021-03-31",null,2500,"2021-04-14",null,null,null,null,null,null,2]
[null,null,null,null,null,null,null,null,null,null,null,null,null,"2021-04-30",null,2500,"2021-05-14",null,null,null,null,null,null,2]
[3,"Муниципальная программа \"Развитие образования\"","нет","925 0000 0000000000 244","№ 8/21","2021-01-21","Выполнение работ (оказание услуг) по предоставлению охраняемой автостоянки, предрейсовому и послерейсовому то автотранспорта и и медицинскому водителейосвидетельствованию",181680,{"$f":"IF(X15 = 3, H15 + SUM(S15:S21) - SUM(T15:T21) - SUM(P15:P21) - V15,0)","v":89060},"235305769122","ИП Барма","нет","с 01.01.2021 по 31.12.2021","2021-01-31","Не позднее 30 календарных дней с момента подписания акта приема-сдачи и документа на оплату",15000,"2021-02-26",null,null,null,null,null,null,3]
[null,null,null,null,null,null,null,null,null,null,null,null,null,"2021-02-28",null,14320,"2021-03-05",null,null,null,null,null,null,3]
[null,null,null,null,null,null,null,null,null,null,null,null,null,"2021-03-31",null,14900,"2021-04-09",null,null,null,null,null,null,3]
[null,null,null,null,null,null,null,null,null,null,null,null,null,"2021-04-30",null,15460,"2021-05-12",null,null,null,null,null,null,3]
[null,null,null,null,null,null,null,null,null,null,null,null,null,"2021-05-31",null,11940,"2021-06-10",null,null,null,null,null,null,3]
[null,null,null,null,null,null,null,null,null,null,null,null,null,"2021-06-30",null,10620,"2021-07-12",null,null,null,null,null,null,3]
[null,null,null,null,null,null,null,null,null,null,null,null,null,"2021-07-31",null,10380,"2021-08-31",null,null,null,null,null,null,3]
[4,"Муниципальная программа \"Развитие образования\"","нет","925 0000 0000000000 244","№ 27","2021-01-22","Энергоаккумуляторы",12680,{"$f":"IF(X22 = 4, H22 + SUM(S22:S22) - SUM(T22:T22) - SUM(P22:P22) - V22,0)","v":0},"235305769122","ИП Барма","нет","В течение 14 рабочих дней","2021-02-17","Не позднее 30 календарных дней с момента подписания акта приема-сдачи и документа на оплату",12680,"2021-02-17",null,null,null,null,null,null,4]
[5,"Муниципальная программа \"Развитие образования\"","нет","925 0000 0000000000 244","№ 49760026/21","2021-02-01","Неисключительное право",2500,{"$f":"IF(X23 = 5, H23 + SUM(S23:S23) - SUM(T23:T23) - SUM(P23:P23) - V23,0)","v":0},"6663003127","АО \"ПФ \"СКБ Контур\"","нет","В течение 5 рабочих дней","2021-03-15","Не позднее 30 календарных дней с момента подписания акта приема-сдачи и документа на оплату",2500,"2021-04-01",null,null,null,null,null,null,5]
[6,"Муниципальная программа \"Развитие образования\"","нет","925 0000 0000000000 244","№ 6","2021-01-21","Поставка товара для бюджетных нужд (молоко)",16038,{"$f":"IF(X24 = 6, H24 + SUM(S24:S38) - SUM(T24:T38) - SUM(P24:P38) - V24,0)","v":2029.5},"2334022342","ООО фирма \"Калория\"","нет","Четверг","2021-01-28","Не позднее 30 календарных дней с момента подписания акта приема-сдачи и документа на оплату",2524.5,"2021-02-09",null,null,null,null,null,null,6]
[null,null,null,null,null,null,null,null,null,null,null,null,null,"2021-02-04",null,825,"2021-02-24",null,null,null,null,null,null,6]
[null,null,null,null,null,null,null,null,null,null,null,null,null,"2021-02-11",null,808.5,"2021-02-24",null,null,null,null,null,null,6]
[null,null,null,null,null,null,null,null,null,null,null,null,null,"2021-02-18",null,825,"2021-03-12",null,null,null,null,null,null,6]
[null,null,null,null,null,null,null,null,null,null,null,null,null,"2021-02-25",null,825,"2021-03-12",null,null,null,null,null,null,6]
[null,null,null,null,null,null,null,null,null,null,null,null,null,"2021-03-04",null,841.5,"2021-04-08",null,null,null,null,null,null,6]
[null,null,null,null,null,null,null,null,null,null,null,null,null,"2021-03-11",null,808.5,"2021-04-08",null,null,null,null,null,null,6]
[null,null,null,null,null,null,null,null,null,null,null,null,null,"2021-03-18",null,808.5,"2021-04-08",null,null,null,null,null,null,6]
[null,null,null,null,null,null,null,null,null,null,null,null,null,"2021-04-01",null,841.5,"2021-04-23",null,null,null,null,null,null,6]
[null,null,null,null,null,null,null,null,null,null,null,null,null,"2021-04-08",null,808.5,"2021-04-23",null,null,null,null,null,null,6]
[null,null,null,null,null,null,null,null,null,null,null,null,null,"2021-04-15",null,825,"2021-04-27",null,null,null,null,null,null,6]
[null,null,null,null,null,null,null,null,null,null,null,null,null,"2021-04-22",null,792,"2021-04-27",null,null,null,null,null,null,6]
[null,null,null,null,null,null,null,null,null,null,null,null,null,"2021-04-29",null,841.5,"2021-05-19",null,null,null,null,null,null,6]
[null,null,null,null,null,null,null,null,null,null,null,null,null,"2021-05-13",null,792,"2021-06-01",null,null,null,null,null,null,6]
[null,null,null,null,null,null,null,null,null,null,null,null,null,"2021-05-20",null,841.5,"2021-06-01",null,null,null,null,null,null,6]
[7,"Муниципальная программа \"Развитие образования\"","нет","925 0000 0000000000 244","№ 33","2021-01-21","ТО автоматических установок пожарной сигнализации",24000,{"$f":"IF(X39 = 7, H39 + SUM(S39:S46) - SUM(T39:T46) - SUM(P39:P46) - V39,0)","v":8000},"2353002302","ООО \"Сигнал\"","нет","Ежемесячно с 01.01.2021 по 31.12.2021","2021-01-31","Не позднее 30 календарных дней с момента подписания акта приема-сдачи и документа на оплату",2000,"2021-02-09",null,null,null,null,null,null,7]
[null,null,null,null,null,null,null,null,null,null,null,null,null,"2021-02-28",null,2000,"2021-03-09",null,null,null,null,null,null,7]
[null,null,null,null,null,null,null,null,null,null,null,null,null,"2021-03-31",null,2000,"2021-04-01",null,null,null,null,null,null,7]
[null,null,null,null,null,null,null,null,null,null,null,null,null,"2021-04-21",null,2000,"2021-04-27",null,null,null,null,null,null,7]
[null,null,null,null,null,null,null,null,null,null,null,null,null,"2021-05-21",null,2000,"2021-05-28",null,null,null,null,null,null,7]
[null,null,null,null,null,null,null,null,null,null,null,null,null,"2021-06-21",null,2000,"2021-07-07",null,null,null,null,null,null,7]
[null,null,null,null,null,null,null,null,null,null,null,null,null,"2021-07-31",null,2000,"2021-08-05",null,null,null,null,null,null,7]
[null,null,null,null,null,null,null,null,null,null,null,null,null,"2021-08-31",null,2000,"2021-08-31",null,null,null,null,null,null,7]
[8,"Муниципальная программа \"Развитие образования\"","нет","925 0000 0000000000 244","№ 39-С","2021-01-21","ТО установки системы пожарного мониторинга \"Стрелец-мониторинг\"",36000,{"$f":"IF(X47 = 8, H47 + SUM(S47:S54) - SUM(T47:T54) - SUM(P47:P54) - V47,0)","v":12000},"2353002302","ООО \"Сигнал\"","нет","согласно графика","2021-01-31","Не позднее 30 календарных дней с момента подписания акта приема-сдачи и документа на оплату",3000,"2021-02-09",null,null,null,null,null,null,8]
[null,null,null,null,null,null,null,null,null,null,null,null,null,"2021-02-28",null,3000,"2021-03-09",null,null,null,null,null,null,8]
[null,null,null,null,null,null,null,null,null,null,null,null,null,"2021-03-31",null,3000,"2021-04-01",null,null,null,null,null,null,8]
[null,null,null,null,null,null,null,null,null,null,null,null,null,"2021-04-21",null,3000,"2021-04-27",null,null,null,null,null,null,8]
[null,null,null,null,null,null,null,null,null,null,null,null,null,"2021-05-21",null,3000,"2021-05-28",null,null,null,null,null,null,8]
[null,null,null,null,null,null,null,null,null,null,null,null,null,"2021-06-21",null,3000,"2021-07-07",null,null,null,null,null,null,8]
[null,null,null,null,null,null,null,null,null,null,null,null,null,"2021-07-31",null,3000,"2021-08-05",null,null,null,null,null,null,8]
[null,null,null,null,null,null,null,null,null,null,null,null,null,"2021-08-31",null,3000,"2021-08-31",null,null,null,null,null,null,8]
[9,"Муниципальная программа \"Развитие образования\"","нет","925 0000 0000000000 244","№ 75","2021-02-02","товар",10965,{"$f":"IF(X55 = 9, H55 + SUM(S55:S55) - SUM(T55:T55) - SUM(P55:P55) - V55,0)","v":0},"235305769122","ИП Барма","нет","В течение 14 рабочих дней","2021-02-08","Не позднее 30 календарных дней с момента подписания акта приема-сдачи и документа на оплату",10965,"2021-02-09",null,null,null,null,null,null,9]
[10,"Муниципальная программа \"Развитие образования\"","нет","925 0000 0000000000 244","№95-ЭО","2021-02-05","Оказание консультационных услуг",3900,{"$f":"IF(X56 = 10, H56 + SUM(S56:S56) - SUM(T56:T56) - SUM(P56:P56) - V56,0)","v":0},"235306110100","ИП Казерова","нет","В течение 3 дней после оплаты","2021-02-08","Не позднее 30 календарных дней с момента подписания акта приема-сдачи и документа на оплату",3900,"2021-02-08",null,null,null,null,null,null,10]
[11,"Муниципальная программа \"Развитие образования\"","нет","925 0000 0000000000 244","№ 124","2021-02-26","товар",7392,{"$f":"IF(X57 = 11, H57 + SUM(S57:S57) - SUM(T57:T57) - SUM(P57:P57) - V57,0)","v":0},"235305769122","ИП Барма","нет","В течение 14 рабочих дней","2021-03-15","Не позднее 30 календарных дней с момента подписания акта приема-сдачи и документа на оплату",7392,"2021-03-15",null,null,null,null,null,null,11]
[12,"Муниципальная программа \"Развитие образования\"","нет","925 0000 0000000000 244","№ 136","2021-03-10","автошина",14650,{"$f":"IF(X58 = 12, H58 + SUM(S58:S58) - SUM(T58:T58) - SUM(P58:P58) - V58,0)","v":0},"235305769122","ИП Барма","нет","В течение 14 рабочих дней","2021-03-15","Не позднее 30 календарных дней с момента подписания акта приема-сдачи и документа на оплату",14650,"2021-03-15",null,null,null,null,null,null,12]
[13,"Муниципальная программа \"Развитие образования\"","нет","925 0000 0000000000 244","№ 198","2021-03-29","Ремонт принтера",10290,{"$f":"IF(X59 = 13, H59 + SUM(S59:S59) - SUM(T59:T59) - SUM(P59:P59) - V59,0)","v":0},"235300809163","ИП Коваленко","нет","В течение 5 рабочих дней","2021-03-29","Не позднее 30 календарных дней с момента подписания акта приема-сдачи и документа на оплату",10290,"2021-04-09",null,null,null,null,null,null,13]
[14,"Муниципальная программа \"Развитие образования\"","нет","925 0000 000000000 244","№ 199","2021-03-29","Заправка картриджа",13110,{"$f":"IF(X60 = 14, H60 + SUM(S60:S60) - SUM(T60:T60) - SUM(P60:P60) - V60,0)","v":0},"235300809163","ИП Коваленко","нет","В течение 5 рабочих дней","2021-03-29","Не позднее 30 календарных дней с момента подписания акта приема-сдачи и документа на оплату",13110,"2021-04-09",null,null,null,null,null,null,14]
[15,"Муниципальная программа \"Развитие образования\"","нет","925 0000 0000000000 244","№ 027","2021-04-06","Бумага",12420,{"$f":"IF(X61 = 15, H61 + SUM(S61:S61) - SUM(T61:T61) - SUM(P61:P61) - V61,0)","v":0},"235306030599","ИП Чуприков","нет","В течение 5 рабочих дней","2021-04-06","Не позднее 30 календарных дней с момента подписания акта приема-сдачи и документа на оплату",12420,"2021-04-09",null,null,null,null,null,null,15]
[16,"Муниципальная программа \"Развитие образования\"","нет","925 0000 000000000 244","166-1","2021-04-15","интернет",48280,{"$f":"IF(X62 = 16, H62 + SUM(S62:S65) - SUM(T62:T65) - SUM(P62:P65) - V62,0)","v":29218.309999999998},"7707049388","ПАО \"Ростелеком\"","нет","круглосуточно","2021-04-30","Не позднее 30 календарных дней с момента подписания акта приема-сдачи и документа на оплату",1732.88,"2021-05-17",null,null,null,null,null,null,16]
[null,null,null,null,null,null,null,null,null,null,null,null,null,"2021-05-31",null,5776.27,"2021-06-10",null,null,null,null,null,null,16]
[null,null,null,null,null,null,null,null,null,null,null,null,null,"2021-06-30",null,5776.27,"2021-07-15",null,null,null,null,null,null,16]
[null,null,null,null,null,null,null,null,null,null,null,null,null,"2021-07-31",null,5776.27,"2021-08-18",null,null,null,null,null,null,16]
[17,"Муниципальная программа \"Развитие образования\"","нет","925 0000 0000000000 244","3356/212","2021-04-27","подписка",9945.09,{"$f":"IF(X66 = 17, H66 + SUM(S66:S66) - SUM(T66:T66) - SUM(P66:P66) - V66,0)","v":0},"7724490000","АО \"Почта России\"","нет","по графику",null,"Не позднее 30 календарных дней с момента подписания акта приема-сдачи и документа на оплату",9945.09,"2021-04-29",null,null,null,null,null,null,17]
[18,"Муниципальная программа \"Развитие образования\"","нет","925 0000 000000000 244","2021-12-01","2021-01-21","обучение",8000,{"$f":"IF(X67 = 18, H67 + SUM(S67:S67) - SUM(T67:T67) - SUM(P67:P67) - V67,0)","v":0},"2327014502","ООО \"БОЦ\"","нет","с 18.01.2021 по 03.03.2021","2021-04-03","Не позднее 30 календарных дней с момента подписания акта приема-сдачи и документа на оплату",8000,"2021-04-26",null,null,null,null,null,null,18]
[19,"Муниципальная программа \"Развитие образования\"","нет","925 0000 0000000000 244",null,"2021-04-16","дезинфекция",4700,{"$f":"IF(X68 = 19, H68 + SUM(S68:S68) - SUM(T68:T68) - SUM(P68:P68) - V68,0)","v":0},"2353018870","ООО \"Дезинфекция\"","нет","с 16.04.2021 по 02.08.2021","2021-06-23","Не позднее 30 календарных дней с момента подписания акта приема-сдачи и документа на оплату",4700,"2021-06-28",null,null,null,null,null,null,19]
[20,"Муниципальная программа \"Развитие образования\"","нет","925 0000 000000000 244",null,"2021-04-01","учебники",12525,{"$f":"IF(X69 = 20, H69 + SUM(S69:S69) - SUM(T69:T69) - SUM(P69:P69) - V69,0)","v":0},"2310047193","ООО \"ОИЦП \"Перспективы образования\"","нет","до 06.08.2021","2021-06-25","Не позднее 30 календарных дней с момента подписания акта приема-сдачи и документа на оплату",12525,"2021-07-19",null,null,null,null,null,null,20]
[21,"Муниципальная программа \"Развитие образования\"","нет","925 0000 000000000 244",null,"2021-04-07","учебники",206073.01,{"$f":"IF(X70 = 21, H70 + SUM(S70:S71) - SUM(T70:T71) - SUM(P70:P71) - V70,0)","v":0},"7715995942","АО \"Издательство \"Просвещение\"","нет","до 06.08.2021","2021-07-19","Не позднее 30 календарных дней с момента подписания акта приема-сдачи и документа на оплату",614.79,"2021-07-19",null,null,null,null,null,null,21]
[null,null,null,null,null,null,null,null,null,null,null,null,null,"2021-07-22",null,205458.22,"2021-07-22",null,null,null,null,null,null,21]
[22,"Муниципальная программа \"Развитие образования\"","нет","925 0000 000000000 244","23-7346","2021-02-25","аттестаты",10745.85,{"$f":"IF(X72 = 22, H72 + SUM(S72:S72) - SUM(T72:T72) - SUM(P72:P72) - V72,0)","v":0},"7706526550","ООО \"СпецБланк-Москва\"","нет","в течение 40 дней после получения поставщиком подписанного контракта","2021-03-29","Не позднее 30 календарных дней с момента подписания акта приема-сдачи и документа на оплату",10745.85,"2021-04-20",null,null,null,null,null,null,22]
[23,"Муниципальная программа \"Развитие образования\"","нет","925 0000 000000000 244","АТОО-01709","2021-05-17","СКЗИ",1000,{"$f":"IF(X73 = 23, H73 + SUM(S73:S73) - SUM(T73:T73) - SUM(P73:P73) - V73,0)","v":0},"2311187588","ООО \"АйТи Мониторинг\"","нет","в течение 45 рабочих дней после оплаты","2021-05-23","Не позднее 30 календарных дней с момента подписания акта приема-сдачи и документа на оплату",1000,"2021-05-25",null,null,null,null,null,null,23]
[24,"Муниципальная программа \"Развитие образования\"","нет","925 0000 000000000 244",43,"2021-05-25","запчасти на косилку",9380,{"$f":"IF(X74 = 24, H74 + SUM(S74:S74) - SUM(T74:T74) - SUM(P74:P74) - V74,0)","v":0},"235301943813","Ип Отиско","нет",null,"2021-05-25","Не позднее 30 календарных дней с момента подписания акта приема-сдачи и документа на оплату",9380,"2021-05-25",null,null,null,null,null,null,24]
[25,"Муниципальная программа \"Развитие образования\"","нет","925 0000 000000000 244",28,"2021-05-25","бумага",12420,{"$f":"IF(X75 = 25, H75 + SUM(S75:S75) - SUM(T75:T75) - SUM(P75:P75) - V75,0)","v":0},"235306030599","ИП Чуприков","нет",null,"2021-05-25","Не позднее 30 календарных дней с момента подписания акта приема-сдачи и документа на оплату",12420,"2021-05-31",null,null,null,null,null,null,25]
[26,"Муниципальная программа \"Развитие образования\"","нет","925 0000 000000000 244",12,"2021-05-28","ремкомплект рулевого пальца",880,{"$f":"IF(X76 = 26, H76 + SUM(S76:S76) - SUM(T76:T76) - SUM(P76:P76) - V76,0)","v":0},"235306709863","ИП Бойкова","нет",null,"2021-05-28","Не позднее 30 календарных дней с момента подписания акта приема-сдачи и документа на оплату",880,"2021-05-31",null,null,null,null,null,null,26]
[27,"Муниципальная программа \"Развитие образования\"","нет","925 0000 000000000 244",201,"2021-06-01","запчасти ",15562,{"$f":"IF(X77 = 27, H77 + SUM(S77:S77) - SUM(T77:T77) - SUM(P77:P77) - V77,0)","v":0},"235305769122","ИП Барма","нет",null,"2021-06-01","Не позднее 30 календарных дней с момента подписания акта приема-сдачи и документа на оплату",15562,"2021-06-10",null,null,null,null,null,null,27]
[28,"Муниципальная программа \"Развитие образования\"","нет","925 0000 000000000 244",42,"2021-06-07","дезсредства",2765,{"$f":"IF(X78 = 28, H78 + SUM(S78:S78) - SUM(T78:T78) - SUM(P78:P78) - V78,0)","v":0},"2312068671","ООО \"Сервис-ЮГ-ККМ\"","нет",null,"2021-06-07","Не позднее 30 календарных дней с момента подписания акта приема-сдачи и документа на оплату",2765,"2021-06-16",null,null,null,null,null,null,28]
[29,"Муниципальная программа \"Развитие образования\"","нет","925 0000 000000000 244",44348,"2021-06-11","Текущий ремонт пищеблока",300000,{"$f":"IF(X79 = 29, H79 + SUM(S79:S79) - SUM(T79:T79) - SUM(P79:P79) - V79,0)","v":300000},"236903124997","ИП Сайдумов","нет","с 19.07.2021 по 31.07.2021",null,"Не позднее 30 календарных дней с момента подписания акта приема-сдачи и документа на оплату",null,null,null,null,null,null,null,null,29]
[30,"Муниципальная программа \"Развитие образования\"","нет","925 0000 000000000 244",141,"2021-06-23","план эвакуации",13500,{"$f":"IF(X80 = 30, H80 + SUM(S80:S80) - SUM(T80:T80) - SUM(P80:P80) - V80,0)","v":0},"235303841817","ИП Черненко","нет","в течение 10 дней с момента оплаты","2021-07-05","Не позднее 30 календарных дней с момента подписания акта приема-сдачи и документа на оплату",13500,"2021-06-28",null,null,null,null,null,null,30]
[31,"Муниципальная программа \"Развитие образования\"","нет","925 0000 000000000 244",44,"2021-06-29","краска",21980,{"$f":"IF(X81 = 31, H81 + SUM(S81:S81) - SUM(T81:T81) - SUM(P81:P81) - V81,0)","v":0},"235301943813","ИП Отиско","нет",null,"2021-06-29","Не позднее 30 календарных дней с момента подписания акта приема-сдачи и документа на оплату",21980,"2021-06-29",null,null,null,null,null,null,31]
[32,"Муниципальная программа \"Развитие образования\"","нет","925 0000 000000000 244",5,"2021-06-30","ктс",1200,{"$f":"IF(X82 = 32, H82 + SUM(S82:S82) - SUM(T82:T82) - SUM(P82:P82) - V82,0)","v":1200},"2353019514","ООО ЧОП Анаконда","нет","июль 2021",null,"Не позднее 30 календарных дней с момента подписания акта приема-сдачи и документа на оплату",null,null,null,null,null,null,null,null,32]
[33,"Муниципальная программа \"Развитие образования\"","нет","925 0000 000000000 244","24/2021","2021-07-01","монтаж ктс",41000,{"$f":"IF(X83 = 33, H83 + SUM(S83:S83) - SUM(T83:T83) - SUM(P83:P83) - V83,0)","v":41000},"232700864879","ИП Ус","нет","в течение 30 рабочих дней",null,"Не позднее 30 календарных дней с момента подписания акта приема-сдачи и документа на оплату",null,null,null,null,null,null,null,null,33]
[34,"Муниципальная программа \"Развитие образования\"","нет","925 0000 000000000 244",446,"2021-07-02","заправка картриджа",7680,{"$f":"IF(X84 = 34, H84 + SUM(S84:S84) - SUM(T84:T84) - SUM(P84:P84) - V84,0)","v":0},"235300809163","ИП Коваленко","нет",null,"2021-07-10","Не позднее 30 календарных дней с момента подписания акта приема-сдачи и документа на оплату",7680,"2021-07-12",null,null,null,null,null,null,34]
[35,"Муниципальная программа \"Развитие образования\"","нет","925 0000 000000000 244",62,"2021-07-05","краска, товар",42490,{"$f":"IF(X85 = 35, H85 + SUM(S85:S85) - SUM(T85:T85) - SUM(P85:P85) - V85,0)","v":0},"235305536400","ИП Быстров","нет",null,"2021-07-10","Не позднее 30 календарных дней с момента подписания акта приема-сдачи и документа на оплату",42490,"2021-07-12",null,null,null,null,null,null,35]
[36,"Муниципальная программа \"Развитие образования\"","нет","925 0000 000000000 244",295,"2021-07-14","крестовина",2100,{"$f":"IF(X86 = 36, H86 + SUM(S86:S86) - SUM(T86:T86) - SUM(P86:P86) - V86,0)","v":0},"235305769122","ИП Барма","нет",null,"2021-07-20","Не позднее 30 календарных дней с момента подписания акта приема-сдачи и документа на оплату",2100,"2021-07-22",null,null,null,null,null,null,36]
[37,"Муниципальная программа \"Развитие образования\"","нет","925 0000 000000000 244",39,"2021-07-15","самоспасатель \"Феникс\"",2200,{"$f":"IF(X87 = 37, H87 + SUM(S87:S87) - SUM(T87:T87) - SUM(P87:P87) - V87,0)","v":0},"235304202316","ИП Барма","нет",null,"2021-07-31","Не позднее 30 календарных дней с момента подписания акта приема-сдачи и документа на оплату",2200,"2021-08-02",null,null,null,null,null,null,37]
[38,"Муниципальная программа \"Развитие образования\"","нет","925 0000 000000000 244",63,"2021-07-18","экскурсионные услуги",7840,{"$f":"IF(X88 = 38, H88 + SUM(S88:S88) - SUM(T88:T88) - SUM(P88:P88) - V88,0)","v":0},"2353016418","Местная религиозная организация","нет","11.08.2021","2021-08-11","Не позднее 30 календарных дней с момента подписания акта приема-сдачи и документа на оплату",7840,"2021-08-20",null,null,null,null,null,null,38]
[39,"Муниципальная программа \"Развитие образования\"","нет","925 0000 000000000 244",9,"2021-07-18","экскурсионные услуги",8400,{"$f":"IF(X89 = 39, H89 + SUM(S89:S89) - SUM(T89:T89) - SUM(P89:P89) - V89,0)","v":0},"2353016418","Местная религиозная организация","нет","03.08.2021","2021-08-03","Не позднее 30 календарных дней с момента подписания акта приема-сдачи и документа на оплату",8400,"2021-08-20",null,null,null,null,null,null,39]
[40,"Муниципальная программа \"Развитие образования\"","нет","925 0000 000000000 244",359,"2021-07-26","перезарядка огнетушителя",900,{"$f":"IF(X90 = 40, H90 + SUM(S90:S90) - SUM(T90:T90) - SUM(P90:P90) - V90,0)","v":0},"2353002302","ООО \"Сигнал\"","нет","В течение 5 рабочих дней после подписания договора","2021-08-07","Не позднее 30 календарных дней с момента подписания акта приема-сдачи и документа на оплату",900,"2021-08-09",null,null,null,null,null,null,40]
[41,"Муниципальная программа \"Развитие образования\"","нет","925 0000 000000000 244",14,"2021-08-02","экскурсионное обслуживание",1540,{"$f":"IF(X91 = 41, H91 + SUM(S91:S91) - SUM(T91:T91) - SUM(P91:P91) - V91,0)","v":0},"2315104991","ГБУК КК \"Новороссийский исторический музей-заповедник\"","нет","11.08.2021","2021-08-11","Не позднее 30 календарных дней с момента подписания акта приема-сдачи и документа на оплату",1540,"2021-08-20",null,null,null,null,null,null,41]
[42,"Муниципальная программа \"Развитие образования\"","нет","925 0000 000000000 244","б/н","2021-08-23","Страхование гражданской ответственности транспортных средств",9982.58,{"$f":"IF(X92 = 42, H92 + SUM(S92:S92) - SUM(T92:T92) - SUM(P92:P92) - V92,0)","v":0},"7710026574","САО \"ВСК\"","нет",null,"2021-08-23","Не позднее 30 календарных дней с момента подписания акта приема-сдачи и документа на оплату",9982.58,"2021-08-31",null,null,null,null,null,null,42]
[43,"Муниципальная программа \"Развитие образования\"","нет","925 0000 000000000 244",328,"2021-08-26","масло, шины",33225,{"$f":"IF(X93 = 43, H93 + SUM(S93:S93) - SUM(T93:T93) - SUM(P93:P93) - V93,0)","v":33225},"235305769122","ИП Барма","нет","В течение 14 рабочих дней после оплаты",null,"Не позднее 30 календарных дней с момента подписания акта приема-сдачи и документа на оплату",null,null,null,null,null,null,null,null,43]
[null,null,null,null,null,null,null,null,null,null,null,null,null,null,null,null,null,null,null,null,null,null,null,44]

{"sheet":"Ед. поставщик п.5 ч.1","index":2,"n_rows":129,"n_cols":24,"rows_kept":129,"cut":false,"hidden":false,"merged":[[46,0,53,0],[46,14,53,14],[46,20,53,20],[46,1,53,1],[46,21,53,21],[46,2,53,2],[46,22,53,22],[46,3,53,3],[46,4,53,4],[46,5,53,5],[46,6,53,6],[46,7,53,7],[46,8,53,8],[46,9,53,9],[46,10,53,10],[46,11,53,11],[46,12,53,12],[123,0,124,0],[123,14,124,14],[123,20,124,20],[123,1,124,1],[123,21,124,21],[123,2,124,2],[123,22,124,22],[123,3,124,3],[123,4,124,4],[123,5,124,5],[123,6,124,6],[123,7,124,7],[123,8,124,8],[123,9,124,9],[123,10,124,10],[123,11,124,11],[123,12,124,12],[88,21,94,21],[88,2,94,2],[88,22,94,22],[88,3,94,3],[88,4,94,4],[88,5,94,5],[88,6,94,6],[88,7,94,7],[88,8,94,8],[88,9,94,9],[88,10,94,10],[88,11,94,11],[88,12,94,12],[81,7,87,7],[81,8,87,8],[81,9,87,9],[81,10,87,10],[81,11,87,11],[81,12,87,12],[88,0,94,0],[88,14,94,14],[88,20,94,20],[88,1,94,1],[27,0,45,0],[27,14,45,14],[27,20,45,20],[27,1,45,1],[27,2,45,2],[27,3,45,3],[27,4,45,4],[27,5,45,5],[27,6,45,6],[27,7,45,7],[27,8,45,8],[27,9,45,9],[27,10,45,10],[27,11,45,11],[27,12,45,12],[81,0,87,0],[81,14,87,14],[81,20,87,20],[114,14,116,14],[114,20,116,20],[114,1,116,1],[114,21,116,21],[114,2,116,2],[95,0,97,0],[64,0,73,0],[64,14,73,14],[64,20,73,20],[64,1,73,1],[64,21,73,21],[64,2,73,2],[98,14,113,14],[98,20,113,20],[98,21,113,21],[114,12,116,12],[76,0,80,0],[76,14,80,14],[76,20,80,20],[76,1,80,1],[8,0,13,0],[8,1,13,1],[8,2,13,2],[8,12,13,12],[14,0,19,0],[14,1,19,1],[76,12,80,12],[114,3,116,3],[114,4,116,4],[114,5,116,5],[114,6,116,6],[114,7,116,7],[114,8,116,8],[114,9,116,9],[114,10,116,10],[114,11,116,11],[98,12,113,12],[114,0,116,0],[98,0,113,0],[98,1,113,1],[98,2,113,2],[95,10,97,10],[95,11,97,11],[62,10,63,10],[8,14,13,14],[8,20,13,20],[8,21,13,21],[8,22,13,22],[8,3,13,3],[8,4,13,4],[8,5,13,5],[8,6,13,6],[8,7,13,7],[8,8,13,8],[8,9,13,9],[8,10,13,10],[8,11,13,11],[98,22,113,22],[98,3,113,3],[98,4,113,4],[98,5,113,5],[98,6,113,6],[98,7,113,7],[114,22,116,22],[64,3,73,3],[64,4,73,4],[64,5,73,5],[64,6,73,6],[64,7,73,7],[64,8,73,8],[64,9,73,9],[64,10,73,10],[64,11,73,11],[64,12,73,12],[98,8,113,8],[98,9,113,9],[98,10,113,10],[98,11,113,11],[95,14,97,14],[95,20,97,20],[95,9,97,9],[54,22,61,22],[54,3,61,3],[54,4,61,4],[54,5,61,5],[54,6,61,6],[54,7,61,7],[54,8,61,8],[54,9,61,9],[54,10,61,10],[54,11,61,11],[54,12,61,12],[54,14,61,14],[64,22,73,22],[76,21,80,21],[76,22,80,22],[76,3,80,3],[76,4,80,4],[76,5,80,5],[76,6,80,6],[76,7,80,7],[76,8,80,8],[76,9,80,9],[76,10,80,10],[1,18,1,20],[1,5,1,6],[1,13,1,14],[54,0,61,0],[74,22,75,22],[74,3,75,3],[74,5,75,5],[74,6,75,6],[74,7,75,7],[74,8,75,8],[74,9,75,9],[74,10,75,10],[74,11,75,11],[74,12,75,12],[74,0,75,0],[74,14,75,14],[74,20,75,20],[74,1,75,1],[74,21,75,21],[74,2,75,2],[74,4,75,4],[54,1,61,1],[54,21,61,21],[54,2,61,2],[54,20,61,20],[95,22,97,22],[62,0,63,0],[62,14,63,14],[62,20,63,20],[62,1,63,1],[62,21,63,21],[62,2,63,2],[62,22,63,22],[62,3,63,3],[62,4,63,4],[62,5,63,5],[62,12,63,12],[95,12,97,12],[95,3,97,3],[95,4,97,4],[95,5,97,5],[95,6,97,6],[95,1,97,1],[95,21,97,21],[95,2,97,2],[62,11,63,11],[95,7,97,7],[95,8,97,8],[62,6,63,6],[62,7,63,7],[62,8,63,8],[62,9,63,9],[76,2,80,2],[76,11,80,11],[81,1,87,1],[81,21,87,21],[81,2,87,2],[81,3,87,3],[81,4,87,4],[81,5,87,5],[14,2,19,2],[14,22,19,22],[14,3,19,3],[14,4,19,4],[14,5,19,5],[14,6,19,6],[14,7,19,7],[14,8,19,8],[14,9,19,9],[14,10,19,10],[14,11,19,11],[14,12,19,12],[14,14,19,14],[14,20,19,20],[14,21,19,21],[27,21,45,21],[27,22,45,22],[81,22,87,22],[81,6,87,6],[117,0,119,0],[117,14,119,14],[117,20,119,20],[117,1,119,1],[117,21,119,21],[117,2,119,2],[117,22,119,22],[117,3,119,3],[117,4,119,4],[117,5,119,5],[117,6,119,6],[117,7,119,7],[117,8,119,8],[117,9,119,9],[117,10,119,10],[117,11,119,11],[117,12,119,12],[20,14,26,14],[20,20,26,20],[20,21,26,21],[20,22,26,22],[20,3,26,3],[20,4,26,4],[20,5,26,5],[20,6,26,6],[20,7,26,7],[20,8,26,8],[20,9,26,9],[20,10,26,10],[20,11,26,11],[20,0,26,0],[20,1,26,1],[20,2,26,2],[20,12,26,12]]}
[]
[null,null,null,null,null,"Сумма заключенных контрактов",null,{"$f":"SUM(H9:H9999)","v":3287241.86},null,null,null,null,null,"Сумма средств выплаченных по контрактам",null,{"$f":"SUM(P9:P9999)","v":2334476.0499999998},null,null,"Общая сумма расторжений по контрактам/договорам",null,null,{"$f":"SUM(V9:V9999)","v":55559.22}]
[]
[]
[]
["№ п/п","Наименование муниципальной программы, национального или регионального проекта","Контракт заключен в электронном виде посредством                             АИС \"Портал поставщиков\"   (Да/Нет)","Код бюджетной классификации","№ договора/контракта","Дата заключения договора/контракта","Предмет договора/контракта","Цена договора/контракта","Остаток по контракту","ИНН поставщика (подрядчика, исполнителя) ","Поставщик (подрядчик, исполнитель)","СМП и СОНО                       (Да/Нет)","Сроки поставки товара (оказания услуги, выполнения работы), согласно контракта; Предоставление документов на оплату Закзчику","Фактическая дата поставки товара (оказания услуги, выполнения работы) и (или) предоставление документов на оплату и подписание документов о приемке","Сроки оплаты согласно договора/контракта","Сумма согласно документа об исполнении контракта заказчиком","Фактическая дата оплаты","Изменение контракта (№, дата)","Изменение контракта (увеличение цены контракта в рублях)","Изменение контракта (уменьшение цены контракта в рублях)","Расторжение контракта (№, дата)","Сумма расторжения","Примечание"]
["1","2","3","4","5","6","7","8","9","10","11","12","13","14","15","16","17","18","19","20","21","22","23"]
["1","Муниципальная программа \"Развитие образования\"",null,"902 0113 1310110490 244","№ 1","2020-01-09","Поставка бумаги для офисной техники",20000,0,2353019514,"ИП Котляров К.И.",null,"В течение 15 рабочих дней, со дня подписания сторонами контракта","2020-01-10","Не позднее 30 календарных дней с момента подписания Заказчиком и Подрядчиком акта приема-сдачи и предоставленного Подрядчиком документа на оплату",20000,"2020-01-10",null,null,null,null,null,"Пример"]
[1,"Муниципальная программа \"Развитие образования\"","нет","925 0000 0000000000 244 ","№6","2020-11-18","Оказание охранных услуг",325800,{"$f":"IF(X9 = 1, H9 + SUM(S9:S14) - SUM(T9:T14) - SUM(P9:P14) - V9,0)","v":0},2311119676,"ООО ЧОА \"Альфа ПЛЮС\"","нет","круглосуточно","2021-01-31","Не позднее 30 календарных дней с момента подписания Заказчиком и Подрядчиком акта приема-сдачи и предоставленного Подрядчиком документа на оплату",55800,"2021-02-10",null,null,null,null,null,null,1]
[null,null,null,null,null,null,null,null,null,null,null,null,null,"2021-02-28",null,50400,"2021-03-04",null,null,null,null,null,null,1]
[null,null,null,null,null,null,null,null,null,null,null,null,null,"2021-03-31",null,55800,"2021-04-01",null,null,null,null,null,null,1]
[null,null,null,null,null,null,null,null,null,null,null,null,null,"2021-04-30",null,54000,"2021-05-14",null,null,null,null,null,null,1]
[null,null,null,null,null,null,null,null,null,null,null,null,null,"2021-05-31",null,55800,"2021-06-01",null,null,null,null,null,null,1]
[null,null,null,null,null,null,null,null,null,null,null,null,null,"2021-06-30",null,54000,"2021-07-07",null,null,null,null,null,null,1]
[2,"Муниципальная программа \"Развитие образования\"","нет","925 0000 0000000000 244","№ 209-ПЦО","2020-12-31","Оказание охранных услуг (ктс)",7200,{"$f":"IF(X15 = 2, H15 + SUM(S15:S20) - SUM(T15:T20) - SUM(P15:P20) - V15,0)","v":0},2311148532,"ООО ЧОА \"Альфа-юг Сервис\"","нет","круглосуточно","2021-01-31","Не позднее 30 календарных дней с момента подписания Заказчиком и Подрядчиком акта приема-сдачи и предоставленного Подрядчиком документа на оплату",1200,"2021-03-02",null,null,null,null,null,null,2]
[null,null,null,null,null,null,null,null,null,null,null,null,null,"2021-02-28",null,1200,"2021-03-02",null,null,null,null,null,null,2]
[null,null,null,null,null,null,null,null,null,null,null,null,null,"2021-03-31",null,1200,"2021-04-01",null,null,null,null,null,null,2]
[null,null,null,null,null,null,null,null,null,null,null,null,null,"2021-04-30",null,1200,"2021-05-14",null,null,null,null,null,null,2]
[null,null,null,null,null,null,null,null,null,null,null,null,null,"2021-05-31",null,1200,"2021-06-01",null,null,null,null,null,null,2]
[null,null,null,null,null,null,null,null,null,null,null,null,null,"2021-06-30",null,1200,"2021-07-07",null,null,null,null,null,null,2]
[3,"Муниципальная программа \"Развитие образования\"","нет","925 0000 0000000000 244","№ 67","2020-12-31","Оказание услуг по обращению с твердыми коммунальными отходами",68431.87,{"$f":"IF(X21 = 3, H21 + SUM(S21:S27) - SUM(T21:T27) - SUM(P21:P27) - V21,0)","v":48952.49},2353022813,"ООО \"Чистый город\"","нет","по заявке Потребителя","2021-01-31","Не позднее 10 календарных дней с момента подписания Заказчиком и Подрядчиком акта приема-сдачи и предоставленного Подрядчиком документа на оплату",1735.79,"2021-03-09",null,null,null,null,null,null,3]
[null,null,null,null,null,null,null,null,null,null,null,null,null,"2021-02-28",null,4628.76,"2021-03-29",null,null,null,null,null,null,3]
[null,null,null,null,null,null,null,null,null,null,null,null,null,"2021-03-31",null,3278.71,"2021-04-14",null,null,null,null,null,null,3]
[null,null,null,null,null,null,null,null,null,null,null,null,null,"2021-04-30",null,3664.44,"2021-05-21",null,null,null,null,null,null,3]
[null,null,null,null,null,null,null,null,null,null,null,null,null,"2021-05-31",null,3857.3,"2021-06-16",null,null,null,null,null,null,3]
[null,null,null,null,null,null,null,null,null,null,null,null,null,"2021-06-30",null,1542.92,"2021-07-19",null,null,null,null,null,null,3]
[null,null,null,null,null,null,null,null,null,null,null,null,null,"2021-07-31",null,771.46,"2021-08-30",null,null,null,null,null,null,3]
[4,"Муниципальная программа \"Развитие образования\"","нет","925 0000 0000000000 244","№ 23070500203","2021-01-14","Энергоснабжение",259100,{"$f":"IF(X28 = 4, H28 + SUM(S28:S46) - SUM(T28:T46) - SUM(P28:P46) - V28,0)","v":19774.619999999966},2308119595,"ПАО \"ТНС энерго Кубань\"","нет","круглосуточно","2021-01-01","30 % - до 10 числа, 40 % - до 25 числа",14233.76,"2021-01-18",null,null,null,null,null,null,4]
[null,null,null,null,null,null,null,null,null,null,null,null,null,"2021-01-01",null,22503.94,"2021-01-22",null,null,null,null,null,null,4]
[null,null,null,null,null,null,null,null,null,null,null,null,null,"2021-02-01",null,16877.95,"2021-02-02",null,null,null,null,null,null,4]
[null,null,null,null,null,null,null,null,null,null,null,null,null,"2021-02-01",null,11794.64,"2021-02-17",null,null,null,null,null,null,4]
[null,null,null,null,null,null,null,null,null,null,null,null,null,"2021-03-01",null,8845.99,"2021-03-03",null,null,null,null,null,null,4]
[null,null,null,null,null,null,null,null,null,null,null,null,null,"2021-02-28",null,9539.02,"2021-03-16",null,null,null,null,null,null,4]
[null,null,null,null,null,null,null,null,null,null,null,null,null,"2021-03-01",null,21745.72,"2021-03-16",null,null,null,null,null,null,4]
[null,null,null,null,null,null,null,null,null,null,null,null,null,"2021-04-01",null,16309.28,"2021-04-01",null,null,null,null,null,null,4]
[null,null,null,null,null,null,null,null,null,null,null,null,null,"2021-04-01",null,15640.16,"2021-04-14",null,null,null,null,null,null,4]
[null,null,null,null,null,null,null,null,null,null,null,null,null,"2021-03-31",null,8508.7199999999993,"2021-04-14",null,null,null,null,null,null,4]
[null,null,null,null,null,null,null,null,null,null,null,null,null,"2021-05-01",null,11730.13,"2021-05-14",null,null,null,null,null,null,4]
[null,null,null,null,null,null,null,null,null,null,null,null,null,"2021-05-01",null,4170.92,"2021-05-17",null,null,null,null,null,null,4]
[null,null,null,null,null,null,null,null,null,null,null,null,null,"2021-06-01",null,3128.2,"2021-06-01",null,null,null,null,null,null,4]
[null,null,null,null,null,null,null,null,null,null,null,null,null,"2021-05-31",null,13863.55,"2021-06-16",null,null,null,null,null,null,4]
[null,null,null,null,null,null,null,null,null,null,null,null,null,"2021-06-01",null,23554.54,"2021-06-16",null,null,null,null,null,null,4]
[null,null,null,null,null,null,null,null,null,null,null,null,null,"2021-07-01",null,17665.900000000001,"2021-07-02",null,null,null,null,null,null,4]
[null,null,null,null,null,null,null,null,null,null,null,null,null,"2021-07-01",null,5086.1899999999996,"2021-07-19",null,null,null,null,null,null,4]
[null,null,null,null,null,null,null,null,null,null,null,null,null,"2021-08-01",null,3814.64,"2021-08-05",null,null,null,null,null,null,4]
[null,null,null,null,null,null,null,null,null,null,null,null,null,"2021-08-01",null,10312.129999999999,"2021-08-18",null,null,null,null,null,null,4]
[5,"Муниципальная программа \"Развитие образования\"","нет","925 0000 0000000000 244","№ 1","2021-01-21","Водоснабжение",47100,{"$f":"IF(X47 = 5, H47 + SUM(S47:S54) - SUM(T47:T54) - SUM(P47:P54) - V47,0)","v":26460.41},2353246210,"ООО \"Коммунальник\"","нет","круглосуточно","2021-01-31","до 25 числа",1590.72,"2021-03-09",null,null,null,null,null,null,5]
[null,null,null,null,null,null,null,null,null,null,null,null,null,"2021-02-28",null,4971,"2021-03-09",null,null,null,null,null,null,5]
[null,null,null,null,null,null,null,null,null,null,null,null,null,"2021-03-31",null,3260.97,"2021-04-14",null,null,null,null,null,null,5]
[null,null,null,null,null,null,null,null,null,null,null,null,null,"2021-04-30",null,2624.68,"2021-05-14",null,null,null,null,null,null,5]
[null,null,null,null,null,null,null,null,null,null,null,null,null,"2021-05-31",null,1710.02,"2021-05-28",null,null,null,null,null,null,5]
[null,null,null,null,null,null,null,null,null,null,null,null,null,"2021-06-30",null,1033.97,"2021-07-07",null,null,null,null,null,null,5]
[null,null,null,null,null,null,null,null,null,null,null,null,null,"2021-07-31",null,2505.39,"2021-08-05",null,null,null,null,null,null,5]
[null,null,null,null,null,null,null,null,null,null,null,null,null,"2021-08-31",null,2942.84,"2021-08-30",null,null,null,null,null,null,5]
[6,"Муниципальная программа \"Развитие образования\"","нет","925 0000 0000000000 244","№ 6","2021-01-21","Услуги по организации горячего питания обучающихся по образовательным программам начального общего образования",270706.8,{"$f":"IF(X55 = 6, H55 + SUM(S55:S62) - SUM(T55:T62) - SUM(P55:P62) - V55,0)","v":0},2353020735,"ООО \"Тимашевское ПРТ Райпо\"","нет","с 11.01.2021 по 25.05.2021","2021-01-22","Не позднее 30 календарных дней с момента подписания Заказчиком и Подрядчиком акта приема-сдачи и предоставленного Подрядчиком документа на оплату",6313.54,"2021-02-24",null,null,null,"б/н",43035.72,null,6]
[null,null,null,null,null,null,null,null,null,null,null,null,null,"2021-01-22",null,98910.02,"2021-02-24",null,null,null,null,null,null,6]
[null,null,null,null,null,null,null,null,null,null,null,null,null,"2021-01-21",null,32228.5,"2021-03-19",null,null,null,null,null,null,6]
[null,null,null,null,null,null,null,null,null,null,null,null,null,"2021-01-21",null,2057.1799999999998,"2021-03-19",null,null,null,null,null,null,6]
[null,null,null,null,null,null,null,null,null,null,null,null,null,"2021-01-21",null,56784.54,"2021-03-19",null,null,null,null,null,null,6]
[null,null,null,null,null,null,null,null,null,null,null,null,null,"2021-01-21",null,3624.62,"2021-03-19",null,null,null,null,null,null,6]
[null,null,null,null,null,null,null,null,null,null,null,null,null,"2021-01-21",null,26087.49,"2021-03-19",null,null,null,null,null,null,6]
[null,null,null,null,null,null,null,null,null,null,null,null,null,"2021-01-21",null,1665.19,"2021-03-19",null,null,null,null,null,null,6]
[7,"Муниципальная программа \"Развитие образования\"","нет","925 0000 0000000000 244","№ ДГ-21/21","2021-01-21","Услуги по техническому сопровождению системы мониторинга транспортных средств",7200,{"$f":"IF(X63 = 7, H63 + SUM(S63:S64) - SUM(T63:T64) - SUM(P63:P64) - V63,0)","v":3600},2369000660,"ООО \"КАНкорт\"",null,"круглосуточно с 01.01.2021 по 31.12.2021","2021-03-31","Не позднее 30 календарных дней с момента подписания Заказчиком и Подрядчиком акта приема-сдачи и предоставленного Подрядчиком документа на оплату",1800,"2021-04-01",null,null,null,null,null,null,7]
[null,null,null,null,null,null,null,null,null,null,null,null,null,"2021-06-30",null,1800,"2021-07-06",null,null,null,null,null,null,7]
[8,"Муниципальная программа \"Развитие образования\"","нет","925 0000 0000000000 244 ","6/3","2021-01-21","Услуги по организации питания учащихся",96050,{"$f":"IF(X65 = 8, H65 + SUM(S65:S74) - SUM(T65:T74) - SUM(P65:P74) - V65,0)","v":26042},2353020735,"ООО \"Тимашевское ПРТ Райпо\"",null,"с 11.01.2021 по 25.05.2021","2021-01-29","Не позднее 30 календарных дней с момента подписания Заказчиком и Подрядчиком акта приема-сдачи и предоставленного Подрядчиком документа на оплату",9204,"2021-02-11",null,null,null,null,null,null,8]
[null,null,null,null,null,null,null,null,null,null,null,null,null,"2021-01-29",null,4510,"2021-02-11",null,null,null,null,null,null,8]
[null,null,null,null,null,null,null,null,null,null,null,null,null,"2021-01-21",null,11724,"2021-03-12",null,null,null,null,null,null,8]
[null,null,null,null,null,null,null,null,null,null,null,null,null,"2021-01-21",null,5610,"2021-03-12",null,null,null,null,null,null,8]
[null,null,null,null,null,null,null,null,null,null,null,null,null,"2021-03-31",null,4490,"2021-04-12",null,null,null,null,null,null,8]
[null,null,null,null,null,null,null,null,null,null,null,null,null,"2021-03-31",null,9528,"2021-04-14",null,null,null,null,null,null,8]
[null,null,null,null,null,null,null,null,null,null,null,null,null,"2021-04-30",null,12780,"2021-05-19",null,null,null,null,null,null,8]
[null,null,null,null,null,null,null,null,null,null,null,null,null,"2021-04-30",null,5820,"2021-05-19",null,null,null,null,null,null,8]
[null,null,null,null,null,null,null,null,null,null,null,null,null,"2021-05-21",null,4332,"2021-06-07",null,null,null,null,null,null,8]
[null,null,null,null,null,null,null,null,null,null,null,null,null,"2021-05-21",null,2010,"2021-06-07",null,null,null,null,null,null,8]
[9,"Муниципальная программа \"Развитие образования\"","нет","925 0000 00000000000 244","6/1","2021-01-21","Услуги по организации горячего питания обучающихся по образовательным программам начального общего образования",77385,{"$f":"IF(X75 = 9, H75 + SUM(S75:S76) - SUM(T75:T76) - SUM(P75:P76) - V75,0)","v":0},2353020735,"ООО \"Тимашевское ПРТ Райпо\"",null,"с 11.01.2021 по 26.02.2021","2021-01-29","Не позднее 30 календарных дней с момента подписания Заказчиком и Подрядчиком акта приема-сдачи и предоставленного Подрядчиком документа на оплату",30079.5,"2021-03-01",null,null,null,"б/н",12523.5,null,9]
[null,null,null,null,null,null,null,null,null,null,null,null,null,"2021-01-21",null,34782,"2021-03-12",null,null,null,null,null,null,9]
[10,"Муниципальная программа \"Развитие образования\"","нет","925 0000 0000000000 244","№ 6/2","2021-01-21","Организация горячего питания обучающихся с ограниченными возможностями здоровья ",39508,{"$f":"IF(X77 = 10, H77 + SUM(S77:S81) - SUM(T77:T81) - SUM(P77:P81) - V77,0)","v":579},2353020735,"ООО \"Тимашевское ПРТ Райпо\"","нет","с 11.01.2021 по 24.05.2021","2021-01-21","Не позднее 30 календарных дней с момента подписания Заказчиком и Подрядчиком акта приема-сдачи и предоставленного Подрядчиком документа на оплату",7174,"2021-02-11",null,null,null,null,null,null,10]
[null,null,null,null,null,null,null,null,null,null,null,null,null,"2021-01-21",null,8662,"2021-03-12",null,null,null,null,null,null,10]
[null,null,null,null,null,null,null,null,null,null,null,null,null,"2021-03-31",null,7370,"2021-04-12",null,null,null,null,null,null,10]
[null,null,null,null,null,null,null,null,null,null,null,null,null,"2021-04-30",null,11116,"2021-05-19",null,null,null,null,null,null,10]
[null,null,null,null,null,null,null,null,null,null,null,null,null,"2021-05-21",null,4607,"2021-06-07",null,null,null,null,null,null,10]
[11,"Муниципальная программа \"Развитие образования\"","нет","925 0000 0000000000 244","№ 166","2021-01-21","Оказание услуг электросвязи юридическому лицу",13000,{"$f":"IF(X82 = 11, H82 + SUM(S82:S88) - SUM(T82:T88) - SUM(P82:P88) - V82,0)","v":2209.0200000000004},7707049388,"ПАО \"Ростелеком\"","нет","с 01.01.2021 по 31.12.2021","2021-01-31","Не позднее 30 календарных дней с момента подписания Заказчиком и Подрядчиком акта приема-сдачи и предоставленного Подрядчиком документа на оплату",1596.46,"2021-02-17",null,null,null,null,null,null,11]
[null,null,null,null,null,null,null,null,null,null,null,null,null,"2021-02-28",null,1459.99,"2021-04-14",null,null,null,null,null,null,11]
[null,null,null,null,null,null,null,null,null,null,null,null,null,"2021-03-31",null,1714.49,"2021-04-14",null,null,null,null,null,null,11]
[null,null,null,null,null,null,null,null,null,null,null,null,null,"2021-04-30",null,1610.89,"2021-05-17",null,null,null,null,null,null,11]
[null,null,null,null,null,null,null,null,null,null,null,null,null,"2021-05-31",null,1387.09,"2021-06-10",null,null,null,null,null,null,11]
[null,null,null,null,null,null,null,null,null,null,null,null,null,"2021-06-30",null,1535.93,"2021-07-15",null,null,null,null,null,null,11]
[null,null,null,null,null,null,null,null,null,null,null,null,null,"2021-07-31",null,1486.13,"2021-08-18",null,null,null,null,null,null,11]
[12,"Муниципальная программа \"Развитие образования\"","нет","925 0000 0000000000 244","№ 166-Б2","2021-01-21","Услуги электросвязи",2000,{"$f":"IF(X89 = 12, H89 + SUM(S89:S95) - SUM(T89:T95) - SUM(P89:P95) - V89,0)","v":1063.06},7707049388,"ПАО \"Ростелеком\"","нет","с 01.01.2021 по 31.12.2021","2021-01-31","Не позднее 30 календарных дней с момента подписания Заказчиком и Подрядчиком акта приема-сдачи и предоставленного Подрядчиком документа на оплату",289.82,"2021-02-17",null,null,null,null,null,null,12]
[null,null,null,null,null,null,null,null,null,null,null,null,null,"2021-02-28",null,203.59,"2021-04-14",null,null,null,null,null,null,12]
[null,null,null,null,null,null,null,null,null,null,null,null,null,"2021-03-31",null,229.22,"2021-04-14",null,null,null,null,null,null,12]
[null,null,null,null,null,null,null,null,null,null,null,null,null,"2021-04-30",null,78.23,"2021-05-17",null,null,null,null,null,null,12]
[null,null,null,null,null,null,null,null,null,null,null,null,null,"2021-05-31",null,59.66,"2021-06-10",null,null,null,null,null,null,12]
[null,null,null,null,null,null,null,null,null,null,null,null,null,"2021-06-30",null,53.76,"2021-07-15",null,null,null,null,null,null,12]
[null,null,null,null,null,null,null,null,null,null,null,null,null,"2021-07-31",null,22.66,"2021-08-18",null,null,null,null,null,null,12]
[13,"Муниципальная программа \"Развитие образования\"","нет","925 0000 0000000000 244","№ 6/5-ТК","2021-01-21","Договор поставки нефтепродуктов",418300,{"$f":"IF(X96 = 13, H96 + SUM(S96:S98) - SUM(T96:T98) - SUM(P96:P98) - V96,0)","v":93745.469999999972},2310195709,"ООО \"Альянс Розница\"","нет","С 01.01.2021 по 31.03.2021","2021-01-31","Не позднее 30 календарных дней с момента подписания Заказчиком и Подрядчиком акта приема-сдачи и предоставленного Подрядчиком документа на оплату",101060.39,"2021-02-26",null,null,null,null,null,null,13]
[null,null,null,null,null,null,null,null,null,null,null,null,null,"2021-02-28",null,112852.45,"2021-04-01",null,null,null,null,null,null,13]
[null,null,null,null,null,null,null,null,null,null,null,null,null,"2021-03-31",null,110641.69,"2021-04-20",null,null,null,null,null,null,13]
[14,"Муниципальная программа \"Развитие образования\"","нет","925 0000 000000000 244","6","2021-03-01","на оказание услуг по организации горячего питания обучающихся по образовательным программам начального общего образования",425022.78,{"$f":"IF(X99 = 14, H99 + SUM(S99:S114) - SUM(T99:T114) - SUM(P99:P114) - V99,0)","v":102427.20999999996},2353020735,"ООО \"Тимашевское ПРТ Райпо\"","нет","с 01.03.2021 по 24.05.2021","2021-03-05","Не позднее 30 календарных дней с момента подписания Заказчиком и Подрядчиком акта приема-сдачи и предоставленного Подрядчиком документа на оплату",2048.4,"2021-04-20",null,null,null,null,null,null,14]
[null,null,null,null,null,null,null,null,null,null,null,null,null,"2021-03-05",null,32090.880000000001,"2021-04-20",null,null,null,null,null,null,14]
[null,null,null,null,null,null,null,null,null,null,null,null,null,"2021-03-31",null,1310.49,"2021-04-20",null,null,null,null,null,null,14]
[null,null,null,null,null,null,null,null,null,null,null,null,null,"2021-03-31",null,20530.62,"2021-04-20",null,null,null,null,null,null,14]
[null,null,null,null,null,null,null,null,null,null,null,null,null,"2021-03-19",null,3419.97,"2021-04-21",null,null,null,null,null,null,14]
[null,null,null,null,null,null,null,null,null,null,null,null,null,"2021-03-19",null,53578.37,"2021-04-21",null,null,null,null,null,null,14]
[null,null,null,null,null,null,null,null,null,null,null,null,null,"2021-04-09",null,2969.03,"2021-05-19",null,null,null,null,null,null,14]
[null,null,null,null,null,null,null,null,null,null,null,null,null,"2021-04-09",null,46513.81,"2021-05-19",null,null,null,null,null,null,14]
[null,null,null,null,null,null,null,null,null,null,null,null,null,"2021-04-23",null,4256.7,"2021-05-19",null,null,null,null,null,null,14]
[null,null,null,null,null,null,null,null,null,null,null,null,null,"2021-04-23",null,66686.94,"2021-05-19",null,null,null,null,null,null,14]
[null,null,null,null,null,null,null,null,null,null,null,null,null,"2021-04-30",null,2181.7600000000002,"2021-05-19",null,null,null,null,null,null,14]
[null,null,null,null,null,null,null,null,null,null,null,null,null,"2021-04-30",null,34180.199999999997,"2021-05-19",null,null,null,null,null,null,14]
[null,null,null,null,null,null,null,null,null,null,null,null,null,"2021-05-14",null,19842.87,"2021-05-26",null,null,null,null,null,null,14]
[null,null,null,null,null,null,null,null,null,null,null,null,null,"2021-05-14",null,1266.5899999999999,"2021-05-26",null,null,null,null,null,null,14]
[null,null,null,null,null,null,null,null,null,null,null,null,null,"2021-05-21",null,1903.17,"2021-05-28",null,null,null,null,null,null,14]
[null,null,null,null,null,null,null,null,null,null,null,null,null,"2021-05-28",null,29815.77,"2021-05-28",null,null,null,null,null,null,14]
[15,"Муниципальная программа \"Развитие образования\"","нет","925 0000 000000000 244","6/1","2021-03-01","на оказание услуг по организации горячего питания обучающихся по образовательным программам начального общего образования",127300,{"$f":"IF(X115 = 15, H115 + SUM(S115:S117) - SUM(T115:T117) - SUM(P115:P117) - V115,0)","v":23731},2353020735,"ООО \"ПРТ \"райпо\"","нет",null,"2021-03-31","Не позднее 30 календарных дней с момента подписания Заказчиком и Подрядчиком акта приема-сдачи и предоставленного Подрядчиком документа на оплату",36670,"2021-04-13",null,null,null,null,null,null,15]
[null,null,null,null,null,null,null,null,null,null,null,null,null,"2021-04-30",null,49666,"2021-05-19",null,null,null,null,null,null,15]
[null,null,null,null,null,null,null,null,null,null,null,null,null,"2021-05-21",null,17233,"2021-06-07",null,null,null,null,null,null,15]
[16,"Муниципальная программа \"Развитие образования\"","да","925 0000 000000000 244","26","2021-03-30","Бензин",341316,{"$f":"IF(X118 = 16, H118 + SUM(S118:S120) - SUM(T118:T120) - SUM(P118:P120) - V118,0)","v":89100.549999999988},7743529527,"ООО \"РН-Карт\"","нет",null,"2021-04-30","Не позднее 30 календарных дней с момента подписания Заказчиком и Подрядчиком акта приема-сдачи и предоставленного Подрядчиком документа на оплату",128717,"2021-05-21",null,null,null,null,null,null,16]
[null,null,null,null,null,null,null,null,null,null,null,null,null,"2021-05-31",null,71679.5,"2021-07-02",null,null,null,null,null,null,16]
[null,null,null,null,null,null,null,null,null,null,null,null,null,"2021-06-30",null,51818.95,"2021-07-19",null,null,null,null,null,null,16]
[17,"Муниципальная программа \"Развитие образования\"","нет","925 0000 0000000 244","898","2021-06-07","аттестация рабочих мест",3200,{"$f":"IF(X121 = 17, H121 + SUM(S121:S121) - SUM(T121:T121) - SUM(P121:P121) - V121,0)","v":0},2310136750,"ООО \"Карьера\"","нет","60 рабочих дней со дня подписания договора","2021-07-25","Не позднее 30 календарных дней с момента подписания Заказчиком и Подрядчиком акта приема-сдачи и предоставленного Подрядчиком документа на оплату",3200,"2021-08-31",null,null,null,null,null,null,17]
[18,"Муниципальная программа \"Развитие образования\"","нет","925 0000 0000000 244","6","2021-06-21","питание лагерь",78030.399999999994,{"$f":"IF(X122 = 18, H122 + SUM(S122:S122) - SUM(T122:T122) - SUM(P122:P122) - V122,0)","v":0},23530020735,"ООО \"ПРТ \"райпо\"","нет","с 28.06.2021 по 17.07.2021","2021-07-18","Не позднее 30 календарных дней с момента подписания Заказчиком и Подрядчиком акта приема-сдачи и предоставленного Подрядчиком документа на оплату",78030.399999999994,"2021-07-30",null,null,null,null,null,null,18]
[19,"Муниципальная программа \"Развитие образования\"","нет","925 0000 000000000 244","SYUT-18078","2021-06-23","ларь морозильный",35621.01,{"$f":"IF(X123 = 19, H123 + SUM(S123:S123) - SUM(T123:T123) - SUM(P123:P123) - V123,0)","v":31000},2312068671,"ООО \"Сервис-ЮГ-ККМ\"","нет","в течение 15 дней с момента оплаты","2021-07-01","Не позднее 30 календарных дней с момента подписания Заказчиком и Подрядчиком акта приема-сдачи и предоставленного Подрядчиком документа на оплату",4621.01,"2021-07-01",null,null,null,null,null,null,19]
[20,"Муниципальная программа \"Развитие образования\"","нет","925 0000 00000000 244","55","2021-06-30","охрана",353280,{"$f":"IF(X124 = 20, H124 + SUM(S124:S125) - SUM(T124:T125) - SUM(P124:P125) - V124,0)","v":234240},2304067057,"ООО ЧОО \"Легион\"","нет","с 01.07.2021 по 31.12.2021","2021-07-31","Не позднее 30 календарных дней с момента подписания Заказчиком и Подрядчиком акта приема-сдачи и предоставленного Подрядчиком документа на оплату",59520,"2021-08-05",null,null,null,null,null,null,20]
[null,null,null,null,null,null,null,null,null,null,null,null,null,"2021-08-31",null,59520,"2021-08-31",null,null,null,null,null,null,20]
[21,"Муниципальная программа \"Развитие образования\"","нет","925 0000 00000000 244","187","2021-07-05","ремонт МФУ",12300,{"$f":"IF(X126 = 21, H126 + SUM(S126:S126) - SUM(T126:T126) - SUM(P126:P126) - V126,0)","v":0},235307008564,"ИП Нидялков","нет",null,"2021-07-05","Не позднее 30 календарных дней с момента подписания Заказчиком и Подрядчиком акта приема-сдачи и предоставленного Подрядчиком документа на оплату",12300,"2021-07-12",null,null,null,null,null,null,21]
[22,"Муниципальная программа \"Развитие образования\"","нет","925 0000 00000000 244","72","2021-06-25","видеорегистратор, жесткий диск",34990,{"$f":"IF(X127 = 22, H127 + SUM(S127:S127) - SUM(T127:T127) - SUM(P127:P127) - V127,0)","v":0},235305540660,"ИП Карлов","нет","В течение 5 дней после подписания договора","2021-06-30","Не позднее 30 календарных дней с момента подписания Заказчиком и Подрядчиком акта приема-сдачи и предоставленного Подрядчиком документа на оплату",34990,"2021-07-12",null,null,null,null,null,null,22]
[23,"Муниципальная программа \"Развитие образования\"","да","925 0000 00000000 244","45","2021-06-30","бензин",244400,{"$f":"IF(X128 = 23, H128 + SUM(S128:S128) - SUM(T128:T128) - SUM(P128:P128) - V128,0)","v":194281.76},2310195709,"ООО \"Альянс Розница\"","нет","с 01.07.2021 по 30.09.2021",null,"Не позднее 30 календарных дней с момента подписания Заказчиком и Подрядчиком акта приема-сдачи и предоставленного Подрядчиком документа на оплату",50118.239999999998,"2021-08-19",null,null,null,null,null,null,23]
[null,null,null,null,null,null,null,null,null,null,null,null,null,null,null,null,null,null,null,null,null,null,null,24]

{"sheet":"Ед.поставщик за искл. п.4,5 ч.1","index":3,"n_rows":13,"n_cols":22,"rows_kept":13,"cut":false,"hidden":false,"merged":[[8,19,11,19],[8,2,11,2],[8,20,11,20],[8,3,11,3],[8,4,11,4],[8,5,11,5],[8,6,11,6],[8,7,11,7],[8,8,11,8],[8,9,11,9],[8,10,11,10],[1,16,1,18],[1,4,1,5],[1,11,1,12],[8,0,11,0],[8,12,11,12],[8,18,11,18],[8,1,11,1]]}
[]
[null,null,null,null,"Сумма заключенных контрактов",null,{"$f":"SUM(G9:G9999)","v":703000},null,null,null,null,"Сумма средств выплаченных по контрактам",null,{"$f":"SUM(N9:N9999)","v":356619.1},null,null,"Общая сумма расторжений по контрактам/договорам",null,null,{"$f":"SUM(T9:T9999)","v":0}]
[]
[]
[]
["№ п/п","№ в реестре контрактов ","Код бюджетной классификации","№ контракта","Дата заключения","Предмет договора/контракта","Цена контракта (Объем финансового обеспечения подлежащий к оплате в текущем фин. году)","Остаток по контракту","ИНН поставщика (подрядчика, исполнителя) ","Поставщик (подрядчик, исполнитель)","Сроки поставки товара (оказания услуги, выполнения работы), согласно контракта; Предоставление документов на оплату Закзчику","Фактическая дата поставки товара (оказания услуги, выполнения работы) и (или) предоставление документов на оплату и подписание документов о приемке","Сроки оплаты согласно договора/контракта","Сумма согласно документа об исполнении контракта заказчиком","Фактическая дата оплаты","Изменение контракта (№, дата)","Изменение контракта (увеличение цены контракта в рублях)","Изменение контракта (уменьшение цены контракта в рублях)","Расторжение контракта (№, дата)","Сумма расторжения","Примечание"]
["1","2","3","4","5","6","7","8","9","10","11","12","13","14","15","16","17","18","19","20","21"]
["1","3235301125818100175","9020104 5210000190244","123","2019-12-24","Поставка электрической энергии",100000,90000,2308091759,"АО \"НЭСК\"","Поставка электрической энергии осуществляется постоянно, в течение срока действия контракта","2019-12-02","До 10 числа расчетного месяца в размере 30%, до 25 числа расчетного месяца 40%, до 18 числа месяца, следующего за расчетным",10000,"2019-01-24",null,null,null,null,null,"Пример"]
[1,null,"925 0000 0000000000 244","1401","2021-01-21","Поставка тепловой энергии",703000,{"$f":"IF(V9 = 1, G9 + SUM(Q9:Q12) - SUM(R9:R12) - SUM(N9:N12) - T9,0)","v":346380.9},2312054894,"АО \"АТЭК\"","Согласно графика","2021-01-31","до 25 числа",115708.48,"2021-02-17",null,null,null,null,null,null,1]
[null,null,null,null,null,null,null,null,null,null,null,"2021-02-28",null,101661.82,"2021-04-01",null,null,null,null,null,null,1]
[null,null,null,null,null,null,null,null,null,null,null,"2021-03-31",null,87002.880000000005,"2021-04-12",null,null,null,null,null,null,1]
[null,null,null,null,null,null,null,null,null,null,null,"2021-04-30",null,52245.919999999998,"2021-05-17",null,null,null,null,null,null,1]
[null,null,null,null,null,null,null,null,null,null,null,null,null,null,null,null,null,null,null,null,null,2]

{"sheet":"Состоявшиеся аукционы","index":4,"n_rows":9,"n_cols":30,"rows_kept":9,"cut":false,"hidden":false,"merged":[[1,4,1,5],[1,14,1,15],[1,24,1,26],[1,19,1,20]]}
[]
[null,null,null,null,"Сумма начальных (максимальных) цен контрактов",null,{"$f":"SUM(G9:G9999)","v":0},null,null,null,null,null,null,null,"Сумма заключенных контрактов",null,{"$f":"SUM(Q9:Q9999)","v":0},null,null,"Сумма средств выплаченных по контрактам",null,{"$f":"SUM(V9:V9999)","v":0},null,null,"Общая сумма расторжений по контрактам/договорам",null,null,{"$f":"SUM(AB9:AB9999)","v":0}]
[]
[]
[]
["№ п/п","Наименование муниципальной программы, национального или регионального проекта","ИКЗ (Идентификационный код закупки)","Код бюджетной классификации","№ извещения","Объект закупки","Н(М)ЦК","Экономия","Количество поданных заявок","Количество заявок признанные несоответствующими","СМП и СОНО","№ в реестре контрактов","№ контракта","Дата заключения","ИНН поставщика (подрядчика, исполнителя) ","Поставщик (подрядчик, исполнитель)","Цена контракта","Остаток по контракту","Сроки поставки товара (оказания услуги, выполнения работы), согласно контракта","Фактическая дата поставки товара (оказания услуги, выполнения работы) и (или) предоставление документов на оплату и подписание документов о приемке","Сроки оплаты согласно контракта","Сумма согласно документа об исполнении контракта заказчиком","Фактическая дата оплаты","Изменение контракта (№, дата)","Изменение контракта (увеличение цены контракта в рублях)","Изменение контракта (уменьшение цены контракта в рублях)","Расторжение контракта (№, дата)","Сумма расторжения","Примечание"]
["1","2","3","4","5","6","7","8","9","10","11","12","13","14","15","16","17","18","19","20","21","22","23","24","25","26","27","28","29"]
["1",null,"193235301125823530100103000010000244 ","902 0113 1210310010 244","0818300019919000194","Поставка картриджа и тонер-картриджей ",15500.01,{"$f":"G8-Q8","v":6725},6,0,"Нет","3235301125819000079","Ф.2019.412162","2019-07-09","3443923035"," ООО \"АНАЛИТИК ЦЕНТР\" ",8775.01,{"$f":"Q8-V8","v":0},"В течение 20 рабочих дней со дня заключения сторонами муниципального контракта","2019-07-31","Не позднее 30 календарных дней с момента подписания Заказчиком документа о приемке выполненных работ и представленного Подрядчиком документа на оплату",8775.01,"2019-08-19",null,null,null,null,null,"Пример"]
[null,null,null,null,null,null,null,null,null,null,null,null,null,null,null,null,null,null,null,null,null,null,null,null,null,null,null,null,null,2]

{"sheet":"Несостоявшиеся аукционы","index":5,"n_rows":9,"n_cols":30,"rows_kept":9,"cut":false,"hidden":false,"merged":[[1,4,1,5],[1,14,1,15],[1,24,1,26],[1,19,1,20]]}
[]
[null,null,null,null,"Сумма начальных (максимальных) цен контрактов",null,{"$f":"SUM(G9:G9996)","v":0},null,null,null,null,null,null,null,"Сумма заключенных контрактов",null,{"$f":"SUM(Q9:Q9996)","v":0},null,null,"Сумма средств выплаченных по контрактам",null,{"$f":"SUM(V9:V9996)","v":0},null,null,"Общая сумма расторжений по контрактам/договорам",null,null,{"$f":"SUM(AB9:AB9996)","v":0}]
[]
[]
[]
["№ п/п","Наименование муниципальной программы, национального или регионального проекта","ИКЗ (Идентификационный код закупки)","Код бюджетной классификации","№ извещения","Объект закупки","Н(М)ЦК","Экономия","Количество поданных заявок","Количество заявок признанные несоответствующими","СМП и СОНО","№ в реестре контрактов","№ контракта","Дата заключения","ИНН поставщика (подрядчика, исполнителя) ","Поставщик (подрядчик, исполнитель)","Цена контракта (Объем финансового обеспечения подлежащий к оплате в текущем фин. году)","Остаток по контракту","Сроки поставки товара (оказания услуги, выполнения работы), согласно контракта","Фактическая дата поставки товара (оказания услуги, выполнения работы) и (или) предоставление документов на оплату и подписание документов о приемке","Сроки оплаты согласно контракта","Сумма согласно документа об исполнении контракта заказчиком","Фактическая дата оплаты","Изменение контракта (№, дата)","Изменение контракта (увеличение цены контракта в рублях)","Изменение контракта (уменьшение цены контракта в рублях)","Расторжение контракта (№, дата)","Сумма расторжения","Примечание"]
["1","2","3","4","5","6","7","8","9","10","11","12","13","14","15","16","17","18","19","20","21","22","23","24","25","26","27","28","29"]
["1",null,"193235301125823530100103000010000244 ","902 0113 1210310010 244","0818300019919000194","Поставка картриджа и тонер-картриджей ",15500.01,{"$f":"G8-Q8","v":6725},6,0,"Нет","3235301125819000079","Ф.2019.412162","2019-07-09","3443923035"," ООО \"АНАЛИТИК ЦЕНТР\" ",8775.01,{"$f":"Q8-V8","v":0},"В течение 20 рабочих дней со дня заключения сторонами муниципального контракта","2019-07-31","Не позднее 30 календарных дней с момента подписания Заказчиком документа о приемке выполненных работ и представленного Подрядчиком документа на оплату",8775.01,"2019-08-19",null,null,null,null,null,"Пример"]
[null,null,null,null,null,null,null,null,null,null,null,null,null,null,null,null,null,null,null,null,null,null,null,null,null,null,null,null,null,2]

{"sheet":"Иные конкурентные закупки","index":6,"n_rows":9,"n_cols":30,"rows_kept":9,"cut":false,"hidden":false,"merged":[[3,15,3,17],[1,4,1,5],[1,14,1,15],[1,24,1,26],[1,19,1,20]]}
[]
[null,null,null,null,"Сумма начальных (максимальных) цен контрактов",null,{"$f":"SUM(G9:G9995)","v":0},null,null,null,null,null,null,null,"Сумма заключенных контрактов",null,{"$f":"SUM(Q9:Q9995)","v":0},null,null,"Сумма средств выплаченных по контрактам",null,{"$f":"SUM(V9:V9995)","v":0},null,null,"Общая сумма расторжений по контрактам/договорам",null,null,{"$f":"SUM(AB9:AB9995)","v":0}]
[]
[]
[]
["№ п/п","Наименование муниципальной программы, национального или регионального проекта","ИКЗ (Идентификационный код закупки)","Код бюджетной классификации","№ извещения","Объект закупки","Н(М)ЦК","Экономия","Количество поданных заявок","Количество заявок признанные несоответствующими","СМП и СОНО","№ в реестре контрактов","№ контракта","Дата заключения","ИНН поставщика (подрядчика, исполнителя) ","Поставщик (подрядчик, исполнитель)","Цена контракта","Остаток по контракту","Сроки поставки товара (оказания услуги, выполнения работы), согласно контракта","Фактическая дата поставки товара (оказания услуги, выполнения работы) и (или) предоставление документов на оплату и подписание документов о приемке","Сроки оплаты согласно контракта","Сумма согласно документа об исполнении контракта заказчиком","Фактическая дата оплаты","Изменение контракта (№, дата)","Изменение контракта (увеличение цены контракта в рублях)","Изменение контракта (уменьшение цены контракта в рублях)","Расторжение контракта (№, дата)","Сумма расторжения","Примечание"]
[1,2,3,4,5,6,7,8,9,10,11,12,13,14,15,16,17,18,19,20,21,22,23,24,25,26,27,28,29]
["1",null,"193235301125823530100103000010000244 ","902 0113 1210310010 244","0818300019919000194","Поставка картриджа и тонер-картриджей ",15500.01,{"$f":"G8-Q8","v":6725},6,0,"Нет","3235301125819000079","Ф.2019.412162","2019-07-09","3443923035"," ООО \"АНАЛИТИК ЦЕНТР\" ",8775.01,{"$f":"Q8-V8","v":0},"В течение 20 рабочих дней со дня заключения сторонами муниципального контракта","2019-07-31","Не позднее 30 календарных дней с момента подписания Заказчиком документа о приемке выполненных работ и представленного Подрядчиком документа на оплату",8775.01,"2019-08-19",null,null,null,null,null,"Пример"]
[null,null,null,null,null,null,null,null,null,null,null,null,null,null,null,null,null,null,null,null,null,null,null,null,null,null,null,null,null,2]

{"sheet":"Настройки","index":7,"n_rows":17,"n_cols":11,"rows_kept":17,"cut":false,"hidden":true,"merged":[[15,3,16,3],[0,3,1,3],[3,3,4,3],[6,3,7,3],[9,3,10,3],[12,3,13,3]]}
[93,43,9,"Ед. поставщик п.4 ч.1 ",null,"Index","Index","Index","Index","Index","Index"]
["TekStrokaP4","TekNomerP4","NachStrokaP4",null,null,43,23,1,0,0,0]
[null,null,null,null,null,"Index+1","Index+1","Index+1","Index+1","Index+1","Index+1"]
[128,23,9,"Ед. поставщик п.5 ч.1 ",null,44,24,2,0,0,0]
["TekStrokaP5","TekNomerP5","NachStrokaP5"]
[]
[12,1,9,"Ед.поставщик за искл. п.4,5 ч.1"]
["TekStrokaSt93","TekNomerSt93","NachStrokaSt93"]
[]
[8,0,9,"Состоявшиеся аукционы"]
["TekStrokaSEA","TekNomerSEA","NachStrokaSEA"]
[]
[8,0,9,"Несостоявшиеся аукционы"]
["TekStrokaNEA","TekNomerNEA","NachStrokaNEA"]
[]
[8,0,9,"Иные конкурентные закупки"]
["TekStrokaIKZ","TekNomerIKZ","NachStrokaIKZ"]